[Event "January 9 Late 2024"]
[Site "https://www.chess.com"]
[Date "2024.01.09"]
[Round "4"]
[White "Tao, Sihan"]
[Black "Abdi, Farzad"]
[Result "0-1"]
[Board "178"]
[TimeControl "180+1"]
[WhiteFideId "30982677"]
[BlackFideId "2076829"]
[WhiteElo "2492"]
[BlackElo "2211"]
[WhiteTeam "USA"]
[BlackTeam "USA"]
[WhiteClock "0:00:16"]
[BlackClock "0:01:01"]

1. d4 {[%clk 0:03:00]}  d5 {[%clk 0:02:58]} 2. c4 {[%clk 0:02:52]}  e6 {[%clk 0:02:58]} 3. Nf3 {[%clk 0:02:50]}  Nf6 {[%clk 0:02:55]} 4. Nc3 {[%clk 0:02:47]}  Be7 {[%clk 0:02:54]} 5. Bf4 {[%clk 0:02:45]}  O-O {[%clk 0:02:55]} 6. e3 {[%clk 0:02:45]}  c5 {[%clk 0:02:54]} 7. dxc5 {[%clk 0:02:44]}  dxc4 {[%clk 0:02:54]} 8. Bxc4 {[%clk 0:02:40]}  Qa5 {[%clk 0:02:52]} 9. O-O {[%clk 0:02:40]}  Qxc5 {[%clk 0:02:51]} 10. Qd4 {[%clk 0:02:34]}  Nc6 {[%clk 0:02:47]} 11. Qxc5 {[%clk 0:02:24]}  Bxc5 {[%clk 0:02:48]} 12. Nb5 {[%clk 0:02:14]}  a6 {[%clk 0:02:44]} 13. Nd6 {[%clk 0:02:01]}  b5 {[%clk 0:02:41]} 14. Be2 {[%clk 0:01:57]}  Rd8 {[%clk 0:02:38]} 15. Rfd1 {[%clk 0:01:55]}  Nd5 {[%clk 0:02:36]} 16. Nxc8 {[%clk 0:01:46]}  Nxf4 {[%clk 0:02:32]} 17. Rxd8+ {[%clk 0:01:34]}  Nxd8 {[%clk 0:02:33]} 18. exf4 {[%clk 0:01:22]}  Rxc8 {[%clk 0:02:32]} 19. Rd1 {[%clk 0:01:23]}  Nc6 {[%clk 0:02:20]} 20. Kf1 {[%clk 0:01:13]}  Nb4 {[%clk 0:02:09]} 21. a3 {[%clk 0:01:12]}  Nd5 {[%clk 0:02:10]} 22. g3 {[%clk 0:01:13]}  Bb6 {[%clk 0:01:53]} 23. Ne1 {[%clk 0:00:55]}  Kf8 {[%clk 0:01:47]} 24. Bf3 {[%clk 0:00:50]}  Rc5 {[%clk 0:01:37]} 25. Bxd5 {[%clk 0:00:38]}  Rxd5 {[%clk 0:01:36]} 26. Rxd5 {[%clk 0:00:31]}  exd5 {[%clk 0:01:37]} 27. Ke2 {[%clk 0:00:31]}  Ke7 {[%clk 0:01:38]} 28. Nd3 {[%clk 0:00:29]}  Kd6 {[%clk 0:01:36]} 29. f3 {[%clk 0:00:23]}  a5 {[%clk 0:01:32]} 30. f5 {[%clk 0:00:21]}  a4 {[%clk 0:01:30]} 31. g4 {[%clk 0:00:20]}  Bd4 {[%clk 0:01:30]} 32. h3 {[%clk 0:00:20]}  Bf6 {[%clk 0:01:27]} 33. Kd2 {[%clk 0:00:21]}  d4 {[%clk 0:01:25]} 34. Kc2 {[%clk 0:00:21]}  Kd5 {[%clk 0:01:25]} 35. b3 {[%clk 0:00:21]}  Be7 {[%clk 0:01:22]} 36. bxa4 {[%clk 0:00:21]}  bxa4 {[%clk 0:01:22]} 37. Kb2 {[%clk 0:00:22]}  Bd6 {[%clk 0:01:20]} 38. Ka2 {[%clk 0:00:17]}  Kc4 {[%clk 0:01:20]} 39. Nb2+ {[%clk 0:00:17]}  Kc3 {[%clk 0:01:14]} 40. Nxa4+ {[%clk 0:00:18]}  Kc2 {[%clk 0:01:14]} 41. Nb6 {[%clk 0:00:16]}  d3 {[%clk 0:01:12]} 42. Nc4 {[%clk 0:00:15]}  d2 {[%clk 0:01:11]} 43. Ne3+ {[%clk 0:00:09]}  Kd3 {[%clk 0:01:09]} 44. Nd1 {[%clk 0:00:10]}  Ke2 {[%clk 0:01:09]} 45. Nc3+ {[%clk 0:00:10]}  Kxf3 {[%clk 0:01:08]} 46. a4 {[%clk 0:00:10]}  Bb4 {[%clk 0:01:06]} 47. Nd1 {[%clk 0:00:11]}  Ke2 {[%clk 0:01:05]} 48. Nb2 {[%clk 0:00:10]}  Bc3 {[%clk 0:01:04]} 49. a5 {[%clk 0:00:08]}  Bxa5 {[%clk 0:01:03]} 50. Kb3 {[%clk 0:00:08]}  d1=Q+ {[%clk 0:01:01]} 51. Nxd1 {[%clk 0:00:08]}  Kxd1 {[%clk 0:01:02]} 52. Kc4 {[%clk 0:00:09]}  Bd8 {[%clk 0:01:00]} 53. Kd5 {[%clk 0:00:09]}  Ke2 {[%clk 0:01:00]} 54. Kd6 {[%clk 0:00:09]}  Kf3 {[%clk 0:00:59]} 55. Kd7 {[%clk 0:00:10]}  Bg5 {[%clk 0:00:58]} 56. Ke8 {[%clk 0:00:10]}  f6 {[%clk 0:00:58]} 57. Kf7 {[%clk 0:00:11]}  Bh6 {[%clk 0:00:58]} 58. Kg8 {[%clk 0:00:10]}  Kg3 {[%clk 0:00:59]} 59. Kxh7 {[%clk 0:00:09]}  Kxh3 {[%clk 0:00:59]} 60. g5 {[%clk 0:00:10]}  fxg5 {[%clk 0:00:58]} 61. f6 {[%clk 0:00:09]}  gxf6 {[%clk 0:00:58]} 62. Kxh6 {[%clk 0:00:09]}  g4 {[%clk 0:00:59]} 63. Kh5 {[%clk 0:00:09]}  g3 {[%clk 0:01:00]} 64. Kh6 {[%clk 0:00:10]}  g2 {[%clk 0:01:01]} 65. Kh5 {[%clk 0:00:10]}  g1=Q {[%clk 0:01:02]} 66. Kh6 {[%clk 0:00:11]}  f5 {[%clk 0:01:01]} 67. Kh5 {[%clk 0:00:11]}  f4 {[%clk 0:01:02]} 68. Kh6 {[%clk 0:00:12]}  f3 {[%clk 0:01:02]} 69. Kh5 {[%clk 0:00:13]}  f2 {[%clk 0:01:03]} 70. Kh6 {[%clk 0:00:14]}  f1=Q {[%clk 0:01:03]} 71. Kh5 {[%clk 0:00:15]}  Qf5+ {[%clk 0:01:00]} 72. Kh6 {[%clk 0:00:16]}  Qfg6# {[%clk 0:01:01]} 0-1

[Event "January 9 Late 2024"]
[Site "https://www.chess.com"]
[Date "2024.01.09"]
[Round "4"]
[White "Hejazipour, Mitra"]
[Black "Spichkin, Alexander"]
[Result "1/2-1/2"]
[Board "187"]
[TimeControl "180+1"]
[WhiteFideId "12505951"]
[BlackFideId "4144074"]
[WhiteElo "2444"]
[BlackElo "2466"]
[WhiteTeam "FRA"]
[BlackTeam "RUS"]
[WhiteClock "0:00:18"]
[BlackClock "0:01:19"]

1. e4 {[%clk 0:02:56]}  e5 {[%clk 0:02:57]} 2. Nf3 {[%clk 0:02:56]}  d5 {[%clk 0:02:57]} 3. exd5 {[%clk 0:02:52]}  e4 {[%clk 0:02:58]} 4. Ne5 {[%clk 0:02:44]}  Qxd5 {[%clk 0:02:56]} 5. d4 {[%clk 0:02:44]}  exd3 {[%clk 0:02:56]} 6. Nxd3 {[%clk 0:02:43]}  Nc6 {[%clk 0:02:57]} 7. Nc3 {[%clk 0:02:41]}  Bb4 {[%clk 0:02:57]} 8. Bd2 {[%clk 0:02:39]}  Bxc3 {[%clk 0:02:57]} 9. Bxc3 {[%clk 0:02:39]}  Nf6 {[%clk 0:02:58]} 10. Qe2+ {[%clk 0:02:37]}  Be6 {[%clk 0:02:57]} 11. Nf4 {[%clk 0:02:36]}  Qf5 {[%clk 0:02:55]} 12. Nxe6 {[%clk 0:02:35]}  fxe6 {[%clk 0:02:55]} 13. O-O-O {[%clk 0:02:35]}  O-O {[%clk 0:02:55]} 14. f3 {[%clk 0:02:28]}  Nd5 {[%clk 0:02:55]} 15. Bd2 {[%clk 0:02:06]}  a5 {[%clk 0:02:53]} 16. Qc4 {[%clk 0:02:02]}  Ncb4 {[%clk 0:02:50]} 17. a3 {[%clk 0:01:58]}  b5 {[%clk 0:02:47]} 18. Qe4 {[%clk 0:01:56]}  Qf6 {[%clk 0:02:35]} 19. Bxb5 {[%clk 0:01:37]}  Rfb8 {[%clk 0:02:25]} 20. c4 {[%clk 0:01:30]}  c6 {[%clk 0:02:11]} 21. cxd5 {[%clk 0:01:28]}  Rxb5 {[%clk 0:02:09]} 22. Qxe6+ {[%clk 0:01:27]}  Qxe6 {[%clk 0:02:09]} 23. dxe6 {[%clk 0:01:27]}  Nd3+ {[%clk 0:02:08]} 24. Kc2 {[%clk 0:01:25]}  Nxb2 {[%clk 0:02:07]} 25. Rb1 {[%clk 0:01:17]}  Nc4 {[%clk 0:02:07]} 26. Rxb5 {[%clk 0:01:11]}  cxb5 {[%clk 0:02:08]} 27. Bc1 {[%clk 0:01:10]}  Ra6 {[%clk 0:01:58]} 28. Re1 {[%clk 0:01:08]}  Kf8 {[%clk 0:01:59]} 29. f4 {[%clk 0:01:05]}  g6 {[%clk 0:01:58]} 30. g4 {[%clk 0:01:04]}  b4 {[%clk 0:01:54]} 31. axb4 {[%clk 0:01:04]}  axb4 {[%clk 0:01:54]} 32. Kb3 {[%clk 0:01:00]}  Nb6 {[%clk 0:01:47]} 33. f5 {[%clk 0:00:54]}  gxf5 {[%clk 0:01:45]} 34. gxf5 {[%clk 0:00:54]}  Nd5 {[%clk 0:01:46]} 35. Kc4 {[%clk 0:00:50]}  Rd6 {[%clk 0:01:40]} 36. Bh6+ {[%clk 0:00:45]}  Ke8 {[%clk 0:01:39]} 37. Kc5 {[%clk 0:00:44]}  Rd8 {[%clk 0:01:39]} 38. Bg5 {[%clk 0:00:43]}  Ne7 {[%clk 0:01:32]} 39. f6 {[%clk 0:00:42]}  Rd5+ {[%clk 0:01:31]} 40. Kxb4 {[%clk 0:00:41]}  Rxg5 {[%clk 0:01:30]} 41. fxe7 {[%clk 0:00:21]}  Kxe7 {[%clk 0:01:30]} 42. Kc4 {[%clk 0:00:20]}  Rg2 {[%clk 0:01:29]} 43. h3 {[%clk 0:00:19]}  Rg3 {[%clk 0:01:28]} 44. Kd5 {[%clk 0:00:18]}  Rxh3 {[%clk 0:01:28]} 45. Ra1 {[%clk 0:00:18]}  Rh5+ {[%clk 0:01:28]} 46. Ke4 {[%clk 0:00:18]}  Kxe6 {[%clk 0:01:27]} 47. Ra6+ {[%clk 0:00:19]}  Kf7 {[%clk 0:01:27]} 48. Ra7+ {[%clk 0:00:19]}  Kf6 {[%clk 0:01:23]} 49. Kf4 {[%clk 0:00:18]}  Rb5 {[%clk 0:01:19]} 50. Rxh7 {[%clk 0:00:18]}  Rb4+ {[%clk 0:01:18]} 51. Ke3 {[%clk 0:00:18]}  Ke5 {[%clk 0:01:19]} 52. Rh5+ {[%clk 0:00:18]}  Kf6 {[%clk 0:01:18]} 53. Rh6+ {[%clk 0:00:19]}  Kg5 {[%clk 0:01:18]} 54. Rc6 {[%clk 0:00:18]}  Kf5 {[%clk 0:01:19]} 55. Rc5+ {[%clk 0:00:19]}  Kg4 {[%clk 0:01:19]} 56. Rd5 {[%clk 0:00:18]}  Rb3+ {[%clk 0:01:19]} 57. Rd3 {[%clk 0:00:18]}  Rxd3+ {[%clk 0:01:19]} 58. Kxd3 {[%clk 0:00:18]} 1/2-1/2

[Event "January 9 Late 2024"]
[Site "https://www.chess.com"]
[Date "2024.01.09"]
[Round "4"]
[White "Bochnicka, Vladimir"]
[Black "Ghosh, Chanchal Kumer"]
[Result "1-0"]
[Board "189"]
[TimeControl "180+1"]
[WhiteFideId "14943450"]
[BlackFideId "10201858"]
[WhiteElo "2462"]
[BlackElo "2116"]
[WhiteTeam "SVK"]
[BlackTeam "BAN"]
[WhiteClock "0:01:20"]
[BlackClock "0:00:35"]

1. e4 {[%clk 0:03:00]}  c5 {[%clk 0:02:59]} 2. Nf3 {[%clk 0:03:01]}  d6 {[%clk 0:03:00]} 3. d4 {[%clk 0:03:01]}  cxd4 {[%clk 0:03:00]} 4. Nxd4 {[%clk 0:03:02]}  Nf6 {[%clk 0:03:01]} 5. Nc3 {[%clk 0:03:03]}  a6 {[%clk 0:03:01]} 6. Be3 {[%clk 0:03:03]}  e5 {[%clk 0:03:01]} 7. Nb3 {[%clk 0:03:03]}  Be6 {[%clk 0:03:02]} 8. f3 {[%clk 0:03:03]}  Be7 {[%clk 0:03:02]} 9. Qd2 {[%clk 0:03:03]}  Nbd7 {[%clk 0:03:03]} 10. O-O-O {[%clk 0:03:03]}  b5 {[%clk 0:03:03]} 11. g4 {[%clk 0:03:02]}  Qc7 {[%clk 0:03:03]} 12. g5 {[%clk 0:03:01]}  Nh5 {[%clk 0:03:03]} 13. Kb1 {[%clk 0:02:54]}  O-O {[%clk 0:02:56]} 14. Nd5 {[%clk 0:02:46]}  Bxd5 {[%clk 0:02:54]} 15. Qxd5 {[%clk 0:02:37]}  Nb6 {[%clk 0:02:54]} 16. Qd2 {[%clk 0:02:25]}  Nc4 {[%clk 0:02:51]} 17. Bxc4 {[%clk 0:02:25]}  bxc4 {[%clk 0:02:51]} 18. Nc1 {[%clk 0:02:23]}  Rab8 {[%clk 0:02:49]} 19. Ne2 {[%clk 0:02:14]}  Rfc8 {[%clk 0:02:32]} 20. Nc3 {[%clk 0:02:13]}  Qa5 {[%clk 0:02:25]} 21. Ka1 {[%clk 0:01:58]}  Rxb2 {[%clk 0:02:17]} 22. Kxb2 {[%clk 0:01:52]}  Rb8+ {[%clk 0:02:15]} 23. Ka1 {[%clk 0:01:51]}  d5 {[%clk 0:02:07]} 24. Nxd5 {[%clk 0:01:33]}  Qa3 {[%clk 0:01:16]} 25. Nxe7+ {[%clk 0:01:29]}  Kf8 {[%clk 0:01:16]} 26. Rb1 {[%clk 0:01:19]}  Rxb1+ {[%clk 0:00:35]} 27. Rxb1 {[%clk 0:01:20]} 1-0

[Event "January 9 Late 2024"]
[Site "https://www.chess.com"]
[Date "2024.01.09"]
[Round "4"]
[White "Ezat, Mohamed"]
[Black "Yushko, Olga"]
[Result "1-0"]
[Board "190"]
[TimeControl "180+1"]
[WhiteFideId "10600906"]
[BlackFideId "14114500"]
[WhiteElo "2455"]
[BlackElo "2116"]
[WhiteTeam "EGY"]
[BlackTeam "UKR"]
[WhiteClock "0:01:22"]
[BlackClock "0:00:48"]

1. d4 {[%clk 0:02:57]}  d5 {[%clk 0:02:57]} 2. c4 {[%clk 0:02:56]}  e6 {[%clk 0:02:57]} 3. Nc3 {[%clk 0:02:45]}  Nf6 {[%clk 0:02:56]} 4. cxd5 {[%clk 0:02:35]}  exd5 {[%clk 0:02:57]} 5. Bg5 {[%clk 0:02:31]}  c6 {[%clk 0:02:55]} 6. Qc2 {[%clk 0:02:14]}  Bd6 {[%clk 0:02:47]} 7. e3 {[%clk 0:02:13]}  O-O {[%clk 0:02:44]} 8. Bd3 {[%clk 0:02:13]}  h6 {[%clk 0:02:43]} 9. Bh4 {[%clk 0:02:13]}  Nbd7 {[%clk 0:02:39]} 10. Nf3 {[%clk 0:02:06]}  Qc7 {[%clk 0:02:38]} 11. O-O {[%clk 0:02:03]}  Re8 {[%clk 0:02:38]} 12. Rac1 {[%clk 0:02:02]}  Nf8 {[%clk 0:02:27]} 13. Nb5 {[%clk 0:02:01]}  Qe7 {[%clk 0:02:21]} 14. Nxd6 {[%clk 0:01:59]}  Qxd6 {[%clk 0:02:21]} 15. Ne5 {[%clk 0:01:59]}  Ne4 {[%clk 0:02:10]} 16. Bxe4 {[%clk 0:01:48]}  dxe4 {[%clk 0:02:10]} 17. Bg3 {[%clk 0:01:49]}  Qd5 {[%clk 0:01:57]} 18. b3 {[%clk 0:01:46]}  Bf5 {[%clk 0:01:53]} 19. Qc4 {[%clk 0:01:43]}  Qxc4 {[%clk 0:01:51]} 20. Nxc4 {[%clk 0:01:42]}  Re7 {[%clk 0:01:33]} 21. Nd6 {[%clk 0:01:38]}  Bg6 {[%clk 0:01:32]} 22. b4 {[%clk 0:01:28]}  Rd8 {[%clk 0:01:28]} 23. b5 {[%clk 0:01:25]}  cxb5 {[%clk 0:01:08]} 24. Nxb5 {[%clk 0:01:24]}  a6 {[%clk 0:01:03]} 25. Nc3 {[%clk 0:01:22]}  Rc8 {[%clk 0:00:53]} 26. Nd5 {[%clk 0:01:22]}  Ree8 {[%clk 0:00:52]} 27. Rxc8 {[%clk 0:01:21]}  Rxc8 {[%clk 0:00:51]} 28. Ne7+ {[%clk 0:01:21]}  Kh7 {[%clk 0:00:48]} 29. Nxc8 {[%clk 0:01:22]} 1-0

[Event "January 9 Late 2024"]
[Site "https://www.chess.com"]
[Date "2024.01.09"]
[Round "4"]
[White "De Souza, Arthur Olintho"]
[Black "Garrido Diaz, Jose Antonio"]
[Result "0-1"]
[Board "191"]
[TimeControl "180+1"]
[WhiteFideId "2116200"]
[BlackFideId "24516252"]
[WhiteElo "2093"]
[BlackElo "2449"]
[WhiteTeam "BRA"]
[BlackTeam "ESP"]
[WhiteClock "0:00:00"]
[BlackClock "0:02:42"]

1. e4 {[%clk 0:01:51]}  c5 {[%clk 0:02:57]} 2. Nc3 {[%clk 0:01:49]}  g6 {[%clk 0:02:56]} 3. Nge2 {[%clk 0:01:38]}  Bg7 {[%clk 0:02:56]} 4. d3 {[%clk 0:00:28]}  Nc6 {[%clk 0:02:55]} 5. Be3 {[%clk 0:00:28]}  d6 {[%clk 0:02:54]} 6. h3 {[%clk 0:00:28]}  Nf6 {[%clk 0:02:54]} 7. g4 {[%clk 0:00:29]}  O-O {[%clk 0:02:54]} 8. Bg2 {[%clk 0:00:29]}  Rb8 {[%clk 0:02:52]} 9. a4 {[%clk 0:00:29]}  a6 {[%clk 0:02:52]} 10. O-O {[%clk 0:00:29]}  b5 {[%clk 0:02:52]} 11. axb5 {[%clk 0:00:30]}  axb5 {[%clk 0:02:53]} 12. Qd2 {[%clk 0:00:31]}  b4 {[%clk 0:02:54]} 13. Nd1 {[%clk 0:00:30]}  Nd7 {[%clk 0:02:53]} 14. Bh6 {[%clk 0:00:28]}  Nd4 {[%clk 0:02:49]} 15. Nxd4 {[%clk 0:00:27]}  cxd4 {[%clk 0:02:48]} 16. Bxg7 {[%clk 0:00:27]}  Kxg7 {[%clk 0:02:48]} 17. f4 {[%clk 0:00:24]}  Qc7 {[%clk 0:02:46]} 18. f5 {[%clk 0:00:23]}  Ne5 {[%clk 0:02:45]} 19. b3 {[%clk 0:00:14]}  Bd7 {[%clk 0:02:45]} 20. Nb2 {[%clk 0:00:14]}  Bb5 {[%clk 0:02:42]} 21. Nc4 {[%clk 0:00:00]}  Bxc4 {[%clk 0:02:42]} 0-1

[Event "January 9 Late 2024"]
[Site "https://www.chess.com"]
[Date "2024.01.09"]
[Round "4"]
[White "Toktomushev, Teimur"]
[Black "Dias, Joao Batista"]
[Result "1-0"]
[Board "193"]
[TimeControl "180+1"]
[WhiteFideId "14176726"]
[BlackFideId "2108240"]
[WhiteElo "2446"]
[BlackElo "2058"]
[WhiteTeam "UKR"]
[BlackTeam "BRA"]
[WhiteClock "0:00:04"]
[BlackClock "0:00:00"]

1. d4 {[%clk 0:03:00]}  d5 {[%clk 0:02:59]} 2. c4 {[%clk 0:02:59]}  c6 {[%clk 0:02:59]} 3. Nc3 {[%clk 0:02:59]}  Nf6 {[%clk 0:02:59]} 4. e3 {[%clk 0:02:59]}  e6 {[%clk 0:02:58]} 5. Nf3 {[%clk 0:02:58]}  Be7 {[%clk 0:02:58]} 6. Bd3 {[%clk 0:02:58]}  O-O {[%clk 0:02:59]} 7. O-O {[%clk 0:02:59]}  dxc4 {[%clk 0:02:59]} 8. Bxc4 {[%clk 0:02:59]}  b5 {[%clk 0:03:00]} 9. Bd3 {[%clk 0:03:00]}  a6 {[%clk 0:03:01]} 10. e4 {[%clk 0:03:00]}  Nbd7 {[%clk 0:03:01]} 11. e5 {[%clk 0:03:00]}  Nd5 {[%clk 0:03:01]} 12. Nxd5 {[%clk 0:02:45]}  cxd5 {[%clk 0:02:58]} 13. g3 {[%clk 0:02:35]}  g6 {[%clk 0:02:58]} 14. h4 {[%clk 0:02:34]}  f5 {[%clk 0:02:49]} 15. exf6 {[%clk 0:02:19]}  Nxf6 {[%clk 0:02:47]} 16. Bh6 {[%clk 0:02:11]}  Re8 {[%clk 0:02:28]} 17. Re1 {[%clk 0:02:11]}  Qd6 {[%clk 0:02:22]} 18. Ne5 {[%clk 0:01:38]}  Bf8 {[%clk 0:02:04]} 19. Bg5 {[%clk 0:01:29]}  Bg7 {[%clk 0:02:01]} 20. Bxf6 {[%clk 0:01:19]}  Bxf6 {[%clk 0:02:01]} 21. h5 {[%clk 0:01:20]}  g5 {[%clk 0:01:55]} 22. h6 {[%clk 0:01:17]}  Ra7 {[%clk 0:01:51]} 23. Qh5 {[%clk 0:01:16]}  Rf8 {[%clk 0:01:43]} 24. Rac1 {[%clk 0:01:12]}  Bd7 {[%clk 0:01:40]} 25. Ng4 {[%clk 0:00:11]}  Bxd4 {[%clk 0:01:18]} 26. Qxg5+ {[%clk 0:00:11]}  Kh8 {[%clk 0:01:16]} 27. Re5 {[%clk 0:00:12]}  Bxe5 {[%clk 0:01:01]} 28. Nxe5 {[%clk 0:00:13]}  Be8 {[%clk 0:00:40]} 29. Rc8 {[%clk 0:00:12]}  Qe7 {[%clk 0:00:35]} 30. Qg4 {[%clk 0:00:04]}  Qf6 {[%clk 0:00:28]} 31. f4 {[%clk 0:00:05]}  Qxh6 {[%clk 0:00:21]} 32. Kg2 {[%clk 0:00:04]}  Qg7 {[%clk 0:00:20]} 33. Qh4 {[%clk 0:00:04]}  Rb7 {[%clk 0:00:01]} 34. Bxh7 {[%clk 0:00:04]}  Qxh7 {[%clk 0:00:01]} 35. Ng6+ {[%clk 0:00:05]}  Kg7 {[%clk 0:00:00]} 36. Qxh7+ {[%clk 0:00:04]} 1-0

[Event "January 9 Late 2024"]
[Site "https://www.chess.com"]
[Date "2024.01.09"]
[Round "4"]
[White "Keuchel, Destynn"]
[Black "Joie, Sebastien"]
[Result "0-1"]
[Board "194"]
[TimeControl "180+1"]
[WhiteFideId "30923018"]
[BlackFideId "650420"]
[WhiteElo "2085"]
[BlackElo "2445"]
[WhiteTeam "USA"]
[BlackTeam "FRA"]
[WhiteClock "0:01:05"]
[BlackClock "0:00:26"]

1. e4 {[%clk 0:03:00]}  c5 {[%clk 0:02:47]} 2. c3 {[%clk 0:03:00]}  d5 {[%clk 0:02:46]} 3. exd5 {[%clk 0:03:00]}  Qxd5 {[%clk 0:02:46]} 4. Na3 {[%clk 0:03:01]}  Nc6 {[%clk 0:02:47]} 5. Nf3 {[%clk 0:03:00]}  a6 {[%clk 0:02:42]} 6. Bc4 {[%clk 0:02:58]}  Qd8 {[%clk 0:02:39]} 7. O-O {[%clk 0:02:56]}  Nf6 {[%clk 0:02:38]} 8. d4 {[%clk 0:02:44]}  cxd4 {[%clk 0:01:52]} 9. cxd4 {[%clk 0:02:39]}  Bg4 {[%clk 0:01:50]} 10. Qb3 {[%clk 0:02:32]}  e6 {[%clk 0:01:23]} 11. Nc2 {[%clk 0:02:03]}  Na5 {[%clk 0:01:07]} 12. Qa4+ {[%clk 0:01:58]}  b5 {[%clk 0:01:03]} 13. Bxb5+ {[%clk 0:01:57]}  axb5 {[%clk 0:01:01]} 14. Qxb5+ {[%clk 0:01:58]}  Qd7 {[%clk 0:01:00]} 15. Qg5 {[%clk 0:01:47]}  Bxf3 {[%clk 0:00:55]} 16. gxf3 {[%clk 0:01:48]}  Qc6 {[%clk 0:00:46]} 17. Bf4 {[%clk 0:01:37]}  Qxc2 {[%clk 0:00:43]} 18. Rfc1 {[%clk 0:01:30]}  Qg6 {[%clk 0:00:43]} 19. b4 {[%clk 0:01:27]}  Nb7 {[%clk 0:00:37]} 20. Rc7 {[%clk 0:01:24]}  Nd6 {[%clk 0:00:29]} 21. Qxg6 {[%clk 0:01:20]}  hxg6 {[%clk 0:00:28]} 22. a4 {[%clk 0:01:20]}  Nd5 {[%clk 0:00:28]} 23. Bxd6 {[%clk 0:01:15]}  Bxd6 {[%clk 0:00:29]} 24. Rc4 {[%clk 0:01:15]}  Bxb4 {[%clk 0:00:28]} 25. Kf1 {[%clk 0:01:11]}  O-O {[%clk 0:00:27]} 26. Ke2 {[%clk 0:01:11]}  Rfc8 {[%clk 0:00:27]} 27. Rxc8+ {[%clk 0:01:09]}  Rxc8 {[%clk 0:00:28]} 28. Kd3 {[%clk 0:01:09]}  Ba5 {[%clk 0:00:27]} 29. Rb1 {[%clk 0:01:09]}  Rc3+ {[%clk 0:00:27]} 30. Ke4 {[%clk 0:01:09]}  Ra3 {[%clk 0:00:27]} 31. Rb8+ {[%clk 0:01:04]}  Kh7 {[%clk 0:00:27]} 32. Rb5 {[%clk 0:01:05]}  Bc7 {[%clk 0:00:26]} 33. Rc5 {[%clk 0:01:05]}  f5# {[%clk 0:00:26]} 0-1

[Event "January 9 Late 2024"]
[Site "https://www.chess.com"]
[Date "2024.01.09"]
[Round "4"]
[White "Oliveira, Tiago Batista"]
[Black "Bold, Andre"]
[Result "0-1"]
[Board "195"]
[TimeControl "180+1"]
[WhiteFideId "2108291"]
[BlackFideId "16208471"]
[WhiteElo "2035"]
[BlackElo "2445"]
[WhiteTeam "BRA"]
[BlackTeam "GER"]
[WhiteClock "0:00:00"]
[BlackClock "0:00:24"]

1. d4 {[%clk 0:02:59]}  d5 {[%clk 0:02:59]} 2. c4 {[%clk 0:02:59]}  c6 {[%clk 0:02:59]} 3. Nf3 {[%clk 0:02:58]}  Nf6 {[%clk 0:02:59]} 4. Qc2 {[%clk 0:02:57]}  g6 {[%clk 0:02:57]} 5. Nc3 {[%clk 0:02:56]}  Bf5 {[%clk 0:02:57]} 6. Qb3 {[%clk 0:02:55]}  Qb6 {[%clk 0:02:56]} 7. Qxb6 {[%clk 0:02:39]}  axb6 {[%clk 0:02:57]} 8. cxd5 {[%clk 0:02:39]}  Nxd5 {[%clk 0:02:55]} 9. Nxd5 {[%clk 0:02:37]}  cxd5 {[%clk 0:02:55]} 10. e3 {[%clk 0:02:32]}  Nc6 {[%clk 0:02:55]} 11. Bb5 {[%clk 0:02:31]}  Bg7 {[%clk 0:02:51]} 12. O-O {[%clk 0:02:27]}  O-O {[%clk 0:02:51]} 13. Bd2 {[%clk 0:02:24]}  Na5 {[%clk 0:02:44]} 14. b3 {[%clk 0:02:18]}  Rac8 {[%clk 0:02:41]} 15. Rfc1 {[%clk 0:02:18]}  f6 {[%clk 0:02:26]} 16. Bb4 {[%clk 0:02:13]}  Kf7 {[%clk 0:02:24]} 17. h3 {[%clk 0:01:21]}  Rfd8 {[%clk 0:02:22]} 18. g4 {[%clk 0:01:17]}  Be6 {[%clk 0:02:19]} 19. Ne1 {[%clk 0:01:00]}  h5 {[%clk 0:02:14]} 20. f3 {[%clk 0:00:57]}  hxg4 {[%clk 0:02:14]} 21. hxg4 {[%clk 0:00:57]}  Bh6 {[%clk 0:02:12]} 22. Kf2 {[%clk 0:00:56]}  Bg5 {[%clk 0:02:05]} 23. Ng2 {[%clk 0:00:51]}  Nc6 {[%clk 0:01:59]} 24. Bd2 {[%clk 0:00:44]}  f5 {[%clk 0:01:54]} 25. f4 {[%clk 0:00:42]}  Bf6 {[%clk 0:01:51]} 26. g5 {[%clk 0:00:39]}  Bg7 {[%clk 0:01:51]} 27. Ne1 {[%clk 0:00:27]}  Ra8 {[%clk 0:01:34]} 28. Nf3 {[%clk 0:00:25]}  Bd7 {[%clk 0:01:28]} 29. Rh1 {[%clk 0:00:16]}  Rh8 {[%clk 0:01:23]} 30. Kg2 {[%clk 0:00:15]}  Rxh1 {[%clk 0:01:22]} 31. Kxh1 {[%clk 0:00:15]}  e6 {[%clk 0:00:46]} 32. a4 {[%clk 0:00:14]}  Ke7 {[%clk 0:00:42]} 33. Nh4 {[%clk 0:00:13]}  Be8 {[%clk 0:00:40]} 34. Kg2 {[%clk 0:00:12]}  Rc8 {[%clk 0:00:37]} 35. Rc1 {[%clk 0:00:11]}  Bf7 {[%clk 0:00:36]} 36. Bb4+ {[%clk 0:00:10]}  Ke8 {[%clk 0:00:34]} 37. Nf3 {[%clk 0:00:10]}  Bf8 {[%clk 0:00:33]} 38. Bxf8 {[%clk 0:00:09]}  Kxf8 {[%clk 0:00:34]} 39. Bxc6 {[%clk 0:00:07]}  bxc6 {[%clk 0:00:33]} 40. Ne5 {[%clk 0:00:07]}  Be8 {[%clk 0:00:34]} 41. b4 {[%clk 0:00:05]}  Ke7 {[%clk 0:00:33]} 42. b5 {[%clk 0:00:05]}  c5 {[%clk 0:00:27]} 43. dxc5 {[%clk 0:00:05]}  bxc5 {[%clk 0:00:28]} 44. b6 {[%clk 0:00:03]}  c4 {[%clk 0:00:26]} 45. a5 {[%clk 0:00:03]}  Bb5 {[%clk 0:00:23]} 46. Nxg6+ {[%clk 0:00:02]}  Kd6 {[%clk 0:00:23]} 47. Ne5 {[%clk 0:00:00]}  Ba6 {[%clk 0:00:24]} 0-1